fUST/lending_fUST_20250630
["ID","MTS","AMOUNT","RATE_DAILY","PERIOD"]
[368616800,1751239842388,-198.0,0.00018395,2]
[368616801,1751239842398,-151.0,0.00018395,2]
[368616802,1751239842407,-198.0,0.00018395,2]
[368616803,1751239842416,-151.0,0.00018395,2]
[368616804,1751239842425,-500.0,0.00018401,2]
[368616805,1751239842434,-151.0,0.00018401,2]
[368616806,1751239842443,-151.0,0.00018402,2]
[368616807,1751239842452,-151.0,0.00018402,2]
[368616808,1751239842461,-151.0,0.00018423,2]
[368616810,1751239842470,-151.0,0.00018423,2]
[368616811,1751239842483,-439.0,0.00018428,2]
[368616812,1751239842491,-245.0,0.00018428,2]
[368616813,1751239842501,-245.0,0.00018429,2]
[368616814,1751239842510,-245.0,0.00018429,2]
[368616815,1751239842519,-245.0,0.0001845,2]
[368616816,1751239842529,-245.0,0.0001845,2]
[368616817,1751239842539,-673.69,0.00018478,3]
[368616818,1751239842548,-3774.61044891,0.00018488,2]
[368616819,1751239842558,-460.0,0.00018563,2]
[368616820,1751239842567,-460.0,0.00018563,2]
[368616821,1751239842578,-460.0,0.00018564,2]
[368616822,1751239842587,-467.45,0.00018564,2]
[368616823,1751239842597,-553.48,0.00018564,2]
[368616824,1751239842606,-2438.09,0.00018564,2]
[368616825,1751239842619,-460.0,0.00018564,2]
[368616827,1751239842629,-460.0,0.00018564,2]
[368616829,1751239842638,-460.0,0.00018565,2]
[368616830,1751239842648,-1444.66,0.00018565,2]
[368616831,1751239842657,-4468.92,0.00018565,2]
[368616832,1751239842667,-460.0,0.00018565,2]
[368616833,1751239842676,-3408.3,0.00018565,2]
[368616834,1751239842686,-460.0,0.00018565,2]
[368616835,1751239842696,-460.0,0.00018565,2]
[368616836,1751239842705,-724.21,0.00018565,2]
[368616837,1751239842715,-545.18,0.00018565,2]
[368616838,1751239842724,-460.0,0.00018565,2]
[368616839,1751239842735,-460.0,0.00018565,2]
[368616840,1751239842744,-3718.43,0.00018565,2]
[368616841,1751239842754,-460.0,0.00018565,2]
[368616842,1751239842763,-4240.6,0.00018565,2]
[368616843,1751239842772,-3968.47,0.00018565,2]
[368616844,1751239842781,-541.01,0.00018565,2]
[368616845,1751239842791,-460.0,0.00018565,2]
[368616846,1751239842800,-2118.16,0.00018565,2]
[368616847,1751239842809,-629.29,0.00018565,2]
[368616848,1751239842818,-569.57,0.00018565,2]
[368616849,1751239842828,-500.0,0.00018566,2]
[368616850,1751239842838,-460.0,0.00018567,2]
[368616851,1751239842847,-460.0,0.00018567,2]
[368616852,1751239842856,-460.0,0.00018567,2]
[368616853,1751239842866,-460.0,0.00018567,2]
[368616854,1751239842875,-460.0,0.00018567,2]
[368616855,1751239842884,-460.0,0.00018567,2]
[368616856,1751239842893,-460.0,0.00018567,2]
[368616857,1751239842902,-460.0,0.00018567,2]
[368616858,1751239842912,-460.0,0.00018567,2]
[368616860,1751239842921,-460.0,0.00018567,2]
[368616862,1751239842929,-460.0,0.00018567,2]
[368616864,1751239842939,-460.0,0.00018567,2]
[368616866,1751239842947,-460.0,0.00018567,2]
[368616868,1751239842956,-437.48988262,0.00018568,2]
[368616870,1751239842965,-460.0,0.00018568,2]
[368616872,1751239842974,-460.0,0.00018569,2]
[368616874,1751239842983,-460.0,0.00018569,2]
[368616876,1751239842993,-460.0,0.00018569,2]
[368616878,1751239843002,-1774.75,0.00018569,2]
[368616880,1751239843010,-326.52,0.00018569,2]
[368616882,1751239843020,-460.0,0.00018569,2]
[368616884,1751239843030,-460.0,0.00018569,2]
[368616886,1751239843039,-910.37,0.00018569,2]
[368616888,1751239843048,-736.48,0.00018569,2]
[368616890,1751239843057,-460.0,0.00018569,2]
[368616892,1751239843067,-460.0,0.00018569,2]
[368616894,1751239843076,-460.0,0.00018569,2]
[368616896,1751239843085,-460.0,0.00018569,2]
[368616898,1751239843094,-909.26,0.00018569,2]
[368616900,1751239843104,-623.38,0.00018569,2]
[368616902,1751239843113,-1179.03,0.00018569,2]
[368616904,1751239843122,-460.0,0.00018569,2]
[368616906,1751239843131,-460.0,0.00018569,2]
[368616909,1751239843140,-460.0,0.00018569,2]
[368616912,1751239843150,-460.0,0.00018569,2]
[368616916,1751239843159,-460.0,0.00018569,2]
[368616918,1751239843168,-460.0,0.0001857,2]
[368616921,1751239843177,-204.91292009,0.0001857,2]
[368616924,1751239843186,-460.0,0.0001857,2]
[368616927,1751239843195,-460.0,0.0001857,2]
[368616930,1751239843205,-460.0,0.0001857,2]
[368616933,1751239843214,-460.0,0.0001857,2]
[368616936,1751239843223,-460.0,0.0001857,2]
[368616939,1751239843233,-285.55139076,0.0001857,2]
[368616942,1751239843242,-460.0,0.0001857,2]
[368616945,1751239843252,-1241.6,0.0001857,2]
[368616948,1751239843261,-460.0,0.0001857,2]
[368616950,1751239843271,-460.0,0.0001857,2]
[368616953,1751239843280,-469.32,0.0001857,2]
[368616955,1751239843290,-460.0,0.0001857,2]
[368616956,1751239843299,-696.63,0.0001857,2]
[368616957,1751239843309,-460.0,0.0001857,2]
[368616958,1751239843318,-460.0,0.0001857,2]
[368616959,1751239843327,-460.0,0.0001857,2]
[368616960,1751239843335,-682.57,0.0001857,2]
[368616961,1751239843345,-460.0,0.0001857,2]
[368616962,1751239843354,-832.29,0.0001857,2]
[368616963,1751239843364,-4830.61,0.0001857,2]
[368616964,1751239843373,-500.0,0.00018572,2]
[368616965,1751239843383,-460.0,0.00018573,2]
[368616966,1751239843392,-460.0,0.00018573,2]
[368616967,1751239843402,-460.0,0.00018573,2]
[368616969,1751239843412,-460.0,0.00018573,2]
[368616971,1751239843421,-460.0,0.00018573,2]
[368616973,1751239843431,-460.0,0.00018573,2]
[368616975,1751239843441,-460.0,0.00018573,2]
[368616977,1751239843450,-460.0,0.00018573,2]
[368616979,1751239843459,-460.0,0.00018573,2]
[368616981,1751239843469,-460.0,0.00018573,2]
[368616983,1751239843477,-485.35,0.00018573,2]
[368616985,1751239843488,-212.85,0.00018573,2]
[368616987,1751239843497,-460.0,0.00018573,2]
[368616989,1751239843506,-460.0,0.00018573,2]
[368616991,1751239843515,-460.0,0.00018573,2]
[368616993,1751239843525,-460.0,0.00018573,2]
[368616995,1751239843534,-962.69,0.00018573,2]
[368616997,1751239843544,-851.48,0.00018573,2]
[368616999,1751239843553,-797.34,0.00018573,2]
[368617000,1751239843562,-760.98,0.00018573,2]
[368617001,1751239843571,-460.0,0.00018573,2]
[368617002,1751239843580,-813.49,0.00018573,2]
[368617003,1751239843589,-460.0,0.00018573,2]
[368617004,1751239843598,-460.0,0.00018573,2]
[368617005,1751239843608,-460.0,0.00018573,2]
[368617006,1751239843622,-460.0,0.00018573,2]
[368617007,1751239843631,-460.0,0.00018573,2]
[368617008,1751239843639,-460.0,0.00018573,2]
[368617009,1751239843649,-460.0,0.00018573,2]
[368617010,1751239843659,-4985.95,0.00018587,2]
[368617011,1751239843668,-1630.49,0.00018587,2]
[368617012,1751239843678,-460.0,0.00018587,2]
[368617013,1751239843687,-500.0,0.00018588,2]
[368617014,1751239843697,-460.0,0.00018589,2]
[368617015,1751239843706,-460.0,0.00018589,2]
[368617016,1751239843715,-590.58,0.00018589,2]
[368617017,1751239843725,-460.0,0.00018589,2]
[368617018,1751239843734,-460.0,0.00018589,2]
[368617019,1751239843744,-460.0,0.00018589,2]
[368617020,1751239843753,-460.0,0.00018589,2]
[368617021,1751239843762,-460.0,0.00018589,2]
[368617022,1751239843772,-460.0,0.00018589,2]
[368617023,1751239843781,-460.0,0.00018589,2]
[368617024,1751239843791,-460.0,0.00018589,2]
[368617025,1751239843800,-668.76,0.00018589,2]
[368617026,1751239843809,-500.0,0.00018589,2]
[368617027,1751239843818,-500.0,0.00018589,2]
[368617028,1751239843828,-460.0,0.0001859,2]
[368617029,1751239843837,-460.0,0.0001859,2]
[368617030,1751239843846,-460.0,0.0001859,2]
[368617031,1751239843855,-460.0,0.0001859,2]
[368617032,1751239843865,-460.0,0.0001859,2]
[368617033,1751239843874,-460.0,0.0001859,2]
[368617034,1751239843883,-460.0,0.0001859,2]
[368617035,1751239843892,-460.0,0.0001859,2]
[368617036,1751239843902,-1629.27,0.0001859,2]
[368617037,1751239843911,-461.01546838,0.0001859,2]
[368617038,1751239843921,-1331.6,0.0001859,2]
[368617039,1751239843930,-1779.2,0.0001859,2]
[368617040,1751239843940,-460.0,0.0001859,2]
[368617041,1751239843950,-460.0,0.0001859,2]
[368617042,1751239843959,-460.0,0.0001859,2]
[368617043,1751239843969,-460.0,0.0001859,2]
[368617044,1751239843978,-1977.74,0.0001859,2]
[368617045,1751239843989,-460.0,0.0001859,2]
[368617046,1751239843998,-539.92,0.0001859,2]
[368617047,1751239844007,-460.0,0.0001859,2]
[368617048,1751239844016,-1240.02,0.0001859,2]
[368617049,1751239844026,-1773.31,0.0001859,2]
[368617050,1751239844035,-460.0,0.00018591,2]
[368617051,1751239844044,-460.0,0.00018591,2]
[368617052,1751239844053,-231.96166779,0.00018591,2]
[368617053,1751239844062,-2139.49779254,0.00018691,2]
[368617054,1751239844072,-500.0,0.0001883,2]
[368617055,1751239844082,-500.0,0.0001883,2]
[368617056,1751239844092,-500.0,0.0001883,2]
[368617057,1751239844101,-500.0,0.0001883,2]
[368617058,1751239844110,-500.0,0.0001883,2]
[368617059,1751239844120,-500.0,0.0001883,2]
[368617060,1751239844130,-500.0,0.0001883,2]
[368617061,1751239844140,-500.0,0.0001883,2]
[368617062,1751239844149,-460.0,0.00018837,2]
[368617063,1751239844161,-460.0,0.00018837,2]
[368617064,1751239844171,-590.54,0.00018838,2]
[368617065,1751239844180,-467.45,0.00018838,2]
[368617066,1751239844190,-553.48,0.00018838,2]
[368617067,1751239844200,-2438.09,0.00018838,2]
[368617068,1751239844211,-460.0,0.00018838,2]
[368617069,1751239844220,-460.0,0.00018838,2]
[368617070,1751239844231,-460.0,0.00018839,2]
[368617071,1751239844242,-1444.66,0.00018839,2]
[368617072,1751239844252,-4468.92,0.00018839,2]
[368617073,1751239844263,-460.0,0.00018839,2]
[368617074,1751239844274,-3408.3,0.00018839,2]
[368617075,1751239844287,-460.0,0.00018839,2]
[368617076,1751239844298,-460.0,0.00018839,2]
[368617077,1751239844308,-724.21,0.00018839,2]
[368617078,1751239844318,-545.18,0.00018839,2]
[368617079,1751239844328,-460.0,0.00018839,2]
[368617080,1751239844338,-460.0,0.00018839,2]
[368617081,1751239844348,-3718.43,0.00018839,2]
[368617082,1751239844358,-460.0,0.00018839,2]
[368617083,1751239844368,-4240.6,0.00018839,2]
[368617084,1751239844377,-3968.47,0.00018839,2]
[368617085,1751239844387,-541.01,0.00018839,2]
[368617086,1751239844396,-460.0,0.00018839,2]
[368617087,1751239844406,-2118.16,0.00018839,2]
[368617088,1751239844416,-629.29,0.00018839,2]
[368617089,1751239844425,-569.57,0.00018839,2]
[368617090,1751239844435,-500.0,0.0001884,2]
[368617091,1751239844445,-460.0,0.00018841,2]
[368617092,1751239844454,-460.0,0.00018841,2]
[368617093,1751239844463,-460.0,0.00018841,2]
[368617094,1751239844472,-460.0,0.00018841,2]
[368617095,1751239844481,-460.0,0.00018841,2]
[368617096,1751239844497,-532.56,0.00018841,2]
[368617097,1751239844511,-460.0,0.00018841,2]
[368617098,1751239844521,-460.0,0.00018841,2]
[368617099,1751239844534,-460.0,0.00018841,2]
[368617100,1751239844543,-460.0,0.00018842,2]
[368617101,1751239844553,-460.0,0.00018843,2]
[368617102,1751239844562,-460.0,0.00018843,2]
[368617103,1751239844572,-460.0,0.00018843,2]
[368617104,1751239844581,-1774.75,0.00018843,2]
[368617105,1751239844590,-460.0,0.00018843,2]
[368617106,1751239844601,-460.0,0.00018843,2]
[368617107,1751239844611,-910.37,0.00018843,2]
[368617108,1751239844622,-736.48,0.00018843,2]
[368617109,1751239844632,-460.0,0.00018843,2]
[368617110,1751239844641,-460.0,0.00018843,2]
[368617111,1751239844650,-460.0,0.00018843,2]
[368617112,1751239844660,-460.0,0.00018843,2]
[368617113,1751239844669,-909.26,0.00018843,2]
[368617114,1751239844678,-623.38,0.00018843,2]
[368617115,1751239844871,-1179.03,0.00018843,2]
[368617116,1751239844881,-460.0,0.00018843,2]
[368617117,1751239844891,-460.0,0.00018843,2]
[368617118,1751239844900,-460.0,0.00018843,2]
[368617119,1751239844910,-460.0,0.00018843,2]
[368617120,1751239844919,-460.0,0.00018843,2]
[368617121,1751239844929,-278.77259246,0.00018844,2]
[368617122,1751239844938,-460.0,0.00018844,2]
[368617123,1751239844947,-260.0,0.00018844,2]
[368617124,1751239844957,-460.0,0.00018844,2]
[368617125,1751239844966,-1241.6,0.00018844,2]
[368617126,1751239844976,-460.0,0.00018844,2]
[368617127,1751239844985,-460.0,0.00018844,2]
[368617128,1751239844995,-469.32,0.00018844,2]
[368617129,1751239845007,-460.0,0.00018844,2]
[368617130,1751239845016,-696.63,0.00018844,2]
[368617131,1751239845025,-460.0,0.00018844,2]
[368617132,1751239845035,-460.0,0.00018844,2]
[368617133,1751239845045,-460.0,0.00018844,2]
[368617134,1751239845055,-682.57,0.00018844,2]
[368617135,1751239845068,-460.0,0.00018844,2]
[368617136,1751239845078,-832.29,0.00018844,2]
[368617137,1751239845088,-4830.61,0.00018844,2]
[368617138,1751239845098,-460.0,0.00018847,2]
[368617139,1751239845107,-460.0,0.00018847,2]
[368617140,1751239845117,-460.0,0.00018847,2]
[368617141,1751239845127,-460.0,0.00018847,2]
[368617142,1751239845137,-460.0,0.00018847,2]
[368617143,1751239845147,-460.0,0.00018847,2]
[368617144,1751239845156,-485.35,0.00018847,2]
[368617145,1751239845166,-460.0,0.00018847,2]
[368617146,1751239845176,-460.0,0.00018847,2]
[368617147,1751239845187,-460.0,0.00018847,2]
[368617148,1751239845197,-460.0,0.00018847,2]
[368617149,1751239845206,-962.69,0.00018847,2]
[368617150,1751239845216,-851.48,0.00018847,2]
[368617151,1751239845226,-797.34,0.00018847,2]
[368617152,1751239845235,-760.98,0.00018847,2]
[368617153,1751239845244,-460.0,0.00018847,2]
[368617154,1751239845254,-813.49,0.00018847,2]
[368617155,1751239845264,-460.0,0.00018847,2]
[368617156,1751239845274,-399.63,0.00018847,2]
[368617157,1751239845284,-460.0,0.00018847,2]
[368617158,1751239845294,-460.0,0.00018847,2]
[368617159,1751239845303,-460.0,0.00018847,2]
[368617160,1751239845315,-785.4136264,0.00018851,2]
[368617161,1751239845324,-4985.95,0.00018861,2]
[368617162,1751239845334,-1630.49,0.00018861,2]
[368617163,1751239845344,-460.0,0.00018861,2]
[368617164,1751239845355,-500.0,0.00018862,2]
[368617165,1751239845364,-402.5439051,0.00018862,2]
[368617166,1751239845374,-460.0,0.00018863,2]
[368617167,1751239845384,-460.0,0.00018863,2]
[368617168,1751239845394,-590.58,0.00018863,2]
[368617169,1751239845405,-460.0,0.00018863,2]
[368617170,1751239845415,-460.0,0.00018863,2]
[368617171,1751239845426,-460.0,0.00018863,2]
[368617172,1751239845435,-460.0,0.00018863,2]
[368617174,1751239845444,-460.0,0.00018863,2]
[368617175,1751239845454,-460.0,0.00018863,2]
[368617176,1751239845463,-460.0,0.00018863,2]
[368617177,1751239845474,-460.0,0.00018863,2]
[368617178,1751239845484,-668.76,0.00018863,2]
[368617179,1751239845495,-1629.27,0.00018864,2]
[368617180,1751239845505,-1331.6,0.00018864,2]
[368617181,1751239845515,-1779.2,0.00018864,2]
[368617182,1751239845525,-460.0,0.00018864,2]
[368617183,1751239845537,-460.0,0.00018864,2]
[368617184,1751239845546,-460.0,0.00018864,2]
[368617185,1751239845556,-1977.74,0.00018864,2]
[368617186,1751239845566,-539.92,0.00018864,2]
[368617187,1751239845575,-1240.02,0.00018864,2]
[368617188,1751239845584,-1773.31,0.00018864,2]
[368617190,1751239845594,-460.0,0.00018865,2]
[368617191,1751239845603,-500.0,0.0001888,2]
[368617192,1751239845612,-500.0,0.00018889,2]
[368617193,1751239845624,-500.0,0.00018889,2]
[368617194,1751239845634,-500.0,0.00018889,2]
[368617195,1751239845643,-500.0,0.00018889,2]
[368617196,1751239845654,-344.8429154,0.00018889,2]
[368617197,1751239845663,-500.0,0.00018889,2]
[368617198,1751239845672,-500.0,0.00018889,2]
[368617199,1751239845682,-500.0,0.00018889,2]
[368617200,1751239845692,-7560.56576371,0.000189,2]
[368617201,1751239845701,-4515.30141011,0.000189,2]
[368617202,1751239845709,-500.0,0.00018917,2]
[368617203,1751239845719,-500.0,0.00018917,2]
[368617204,1751239845728,-500.0,0.00018917,2]
[368617205,1751239845737,-500.0,0.00018917,2]
[368617206,1751239845747,-500.0,0.00018917,2]
[368617207,1751239845757,-509.83488181,0.00018917,2]
[368617208,1751239845766,-500.0,0.00018917,2]
[368617209,1751239845777,-500.0,0.00018917,2]
[368617210,1751239845787,-500.0,0.00018917,2]
[368617211,1751239845796,-500.0,0.00018917,2]
[368617212,1751239845806,-500.0,0.00018917,2]
[368617213,1751239845816,-500.0,0.00018917,2]
[368617214,1751239845826,-500.0,0.00018917,2]
[368617215,1751239845835,-501.56666616,0.00018917,2]
[368617216,1751239845844,-500.0,0.00018917,2]
[368617217,1751239845854,-500.0,0.00018917,2]
[368617218,1751239845863,-431.37372499,0.00018917,2]
[368617219,1751239845872,-500.0,0.00018917,2]
[368617220,1751239845882,-500.0,0.00018917,2]
[368617221,1751239845891,-500.0,0.00018917,2]
[368617222,1751239845900,-500.0,0.00018917,2]
[368617223,1751239845910,-500.0,0.00018924,2]
[368617224,1751239845919,-500.0,0.00018926,2]
[368617225,1751239845929,-500.68364037,0.00018927,2]
[368617226,1751239845938,-500.0,0.00018927,2]
[368617227,1751239845949,-500.0,0.00018927,2]
[368617228,1751239845958,-377.86166272,0.00018927,2]
[368617229,1751239845968,-500.0,0.00018931,2]
[368617230,1751239845978,-467.22709532,0.00018935,2]
[368617231,1751239845987,-230.0,0.00018935,2]
[368617232,1751239845997,-166.30513334,0.00018935,2]
[368617233,1751239846007,-500.0,0.00018935,2]
[368617234,1751239846017,-201.18190527,0.00018935,2]
[368617235,1751239846026,-500.0,0.00018935,2]
[368617236,1751239846035,-500.0,0.00018935,2]
[368617237,1751239846045,-500.0,0.00018935,2]
[368617238,1751239846055,-247.03038883,0.00018935,2]
[368617239,1751239846064,-500.0,0.00018935,2]
[368617240,1751239846074,-5422.88678994,0.00019,2]
[368617241,1751239846083,-4515.30140992,0.00019072,2]
[368617242,1751239846093,-460.0,0.00019111,2]
[368617244,1751239846102,-460.0,0.00019111,2]
[368617246,1751239846112,-467.45,0.00019112,2]
[368617248,1751239846121,-553.48,0.00019112,2]
[368617250,1751239846130,-2438.09,0.00019112,2]
[368617252,1751239846139,-460.0,0.00019112,2]
[368617253,1751239846149,-460.0,0.00019112,2]
[368617255,1751239846157,-460.0,0.00019113,2]
[368617256,1751239846167,-1444.66,0.00019113,2]
[368617257,1751239846176,-4468.92,0.00019113,2]
[368617258,1751239846185,-460.0,0.00019113,2]
[368617259,1751239846194,-3408.3,0.00019113,2]
[368617260,1751239846203,-460.0,0.00019113,2]
[368617261,1751239846212,-724.21,0.00019113,2]
[368617262,1751239846222,-545.18,0.00019113,2]
[368617263,1751239846231,-460.0,0.00019113,2]
[368617264,1751239846240,-3718.43,0.00019113,2]
[368617266,1751239846249,-460.0,0.00019113,2]
[368617268,1751239846258,-4240.6,0.00019113,2]
[368617269,1751239846267,-3968.47,0.00019113,2]
[368617270,1751239846277,-541.01,0.00019113,2]
[368617271,1751239846286,-460.0,0.00019113,2]
[368617272,1751239846295,-2118.16,0.00019113,2]
[368617273,1751239846305,-629.29,0.00019113,2]
[368617274,1751239846314,-569.57,0.00019113,2]
[368617275,1751239846324,-500.0,0.00019114,2]
[368617276,1751239846333,-460.0,0.00019115,2]
[368617277,1751239846343,-460.0,0.00019115,2]
[368617278,1751239846352,-460.0,0.00019115,2]
[368617279,1751239846363,-460.0,0.00019115,2]
[368617280,1751239846372,-460.0,0.00019115,2]
[368617281,1751239846382,-460.0,0.00019115,2]
[368617282,1751239846392,-460.0,0.00019115,2]
[368617283,1751239846401,-460.0,0.00019117,2]
[368617284,1751239846411,-460.0,0.00019117,2]
[368617285,1751239846420,-460.0,0.00019117,2]
[368617286,1751239846430,-1774.75,0.00019117,2]
[368617287,1751239846448,-460.0,0.00019117,2]
[368617288,1751239846459,-910.37,0.00019117,2]
[368617289,1751239846470,-460.0,0.00019117,2]
[368617290,1751239846480,-736.48,0.00019117,2]
[368617291,1751239846490,-460.0,0.00019117,2]
[368617292,1751239846499,-460.0,0.00019117,2]
[368617293,1751239846509,-460.0,0.00019117,2]
[368617294,1751239846519,-909.26,0.00019117,2]
[368617295,1751239846530,-623.38,0.00019117,2]
[368617296,1751239846540,-1179.03,0.00019117,2]
[368617297,1751239846549,-460.0,0.00019117,2]
[368617298,1751239846559,-460.0,0.00019117,2]
[368617299,1751239846569,-460.0,0.00019117,2]
[368617300,1751239846578,-460.0,0.00019117,2]
[368617301,1751239846588,-460.0,0.00019118,2]
[368617302,1751239846597,-1241.6,0.00019118,2]
[368617303,1751239846608,-460.0,0.00019118,2]
[368617304,1751239846622,-460.0,0.00019118,2]
[368617305,1751239846631,-469.32,0.00019118,2]
[368617306,1751239846641,-460.0,0.00019118,2]
[368617307,1751239846651,-696.63,0.00019118,2]
[368617308,1751239846661,-460.0,0.00019118,2]
[368617309,1751239846671,-460.0,0.00019118,2]
[368617310,1751239846680,-460.0,0.00019118,2]
[368617311,1751239846690,-682.57,0.00019118,2]
[368617312,1751239846700,-460.0,0.00019118,2]
[368617313,1751239846710,-832.29,0.00019118,2]
[368617314,1751239846719,-4830.61,0.00019118,2]
[368617315,1751239846729,-460.0,0.00019121,2]
[368617316,1751239846738,-460.0,0.00019121,2]
[368617317,1751239846748,-460.0,0.00019121,2]
[368617318,1751239846757,-460.0,0.00019121,2]
[368617319,1751239846767,-460.0,0.00019121,2]
[368617320,1751239846777,-460.0,0.00019121,2]
[368617321,1751239846787,-485.35,0.00019121,2]
[368617322,1751239846796,-460.0,0.00019121,2]
[368617323,1751239846807,-460.0,0.00019121,2]
[368617324,1751239846817,-460.0,0.00019121,2]
[368617325,1751239846827,-460.0,0.00019121,2]
[368617326,1751239846837,-962.69,0.00019121,2]
[368617327,1751239846847,-851.48,0.00019121,2]
[368617328,1751239846857,-797.34,0.00019121,2]
[368617329,1751239846866,-760.98,0.00019121,2]
[368617330,1751239846876,-460.0,0.00019121,2]
[368617331,1751239846886,-813.49,0.00019121,2]
[368617332,1751239846896,-460.0,0.00019121,2]
[368617333,1751239846905,-460.0,0.00019121,2]
[368617334,1751239846915,-460.0,0.00019121,2]
[368617335,1751239846924,-460.0,0.00019121,2]
[368617336,1751239846934,-4985.95,0.00019135,2]
[368617337,1751239846943,-1630.49,0.00019135,2]
[368617338,1751239846953,-443.40624203,0.00019135,2]
[368617339,1751239846963,-460.0,0.00019137,2]
[368617340,1751239846973,-590.58,0.00019137,2]
[368617341,1751239846983,-402.92667154,0.00019137,2]
[368617342,1751239846992,-529.1243681,0.00019137,2]
[368617343,1751239847002,-460.0,0.00019137,2]
[368617344,1751239847011,-460.0,0.00019137,2]
[368617345,1751239847021,-460.0,0.00019137,2]
[368617346,1751239847032,-460.0,0.00019137,2]
[368617347,1751239847041,-580.93353819,0.00019137,2]
[368617348,1751239847051,-668.76,0.00019137,2]
[368617349,1751239847060,-1629.27,0.00019138,2]
[368617350,1751239847070,-1331.6,0.00019138,2]
[368617351,1751239847079,-1779.2,0.00019138,2]
[368617352,1751239847090,-460.0,0.00019138,2]
[368617353,1751239847100,-460.0,0.00019138,2]
[368617354,1751239847111,-460.0,0.00019138,2]
[368617355,1751239847120,-1977.74,0.00019138,2]
[368617356,1751239847129,-539.92,0.00019138,2]
[368617357,1751239847139,-1240.02,0.00019138,2]
[368617358,1751239847149,-1773.31,0.00019138,2]
[368617359,1751239847158,-500.0,0.00019164,2]
[368617360,1751239847168,-2139.49779254,0.00019165,2]
[368617361,1751239847177,-151.0,0.00019178,2]
[368617362,1751239847187,-151.0,0.00019178,2]
[368617363,1751239847196,-500.0,0.00019178,2]
[368617364,1751239847205,-233.66999472,0.00019178,2]
[368617365,1751239847214,-151.0,0.00019178,2]
[368617366,1751239847224,-151.0,0.00019178,2]
[368617367,1751239847233,-544.33352,0.00019178,2]
[368617368,1751239847242,-55349.0902884,0.00019178,2]
[368617369,1751239847252,-4515.30140992,0.00019245,2]
[368617370,1751239847261,-151.0,0.000193,2]
[368617371,1751239847271,-151.0,0.00019329,2]
[368617372,1751239847282,-151.0,0.00019329,2]
[368617373,1751239847291,-347.744841,0.00019329,2]
[368617374,1751239847301,-347.744841,0.00019329,2]
[368617375,1751239847310,-212.332006,0.00019329,2]
[368617376,1751239847319,-212.332006,0.00019329,2]
[368617377,1751239847328,-421.827696,0.00019329,2]
[368617378,1751239847337,-421.827696,0.00019329,2]
[368617379,1751239847347,-153.213618,0.00019329,2]
[368617380,1751239847356,-151.0,0.00019329,2]
[368617381,1751239847366,-1111.888315,0.00019329,2]
[368617382,1751239847375,-1111.888315,0.00019329,2]
[368617383,1751239847385,-100000.0,0.00019329,2]
[368617384,1751239847394,-1031.97906164,0.00019378,2]